[Event "XLIV Sevilla Open 2019"]
[Site "Sevilla"]
[Date "2019.01.18"]
[Round "8"]
[White "Insa Alfonso, Pablo"]
[Black "Krishna Teja, N."]
[Result "1/2-1/2"]
[ECO "B18"]
[WhiteElo "2301"]
[BlackElo "2371"]
[Annotator "NA"]
[PlyCount "78"]
[EventDate "2019.01.11"]
[EventType "swiss"]
[EventCountry "ESP"]
[SourceTitle "playchess.com"]
[Source "ChessBase"]
[SourceQuality "1"]
[TimeControl "5400+30"]

1. e4 {[%emt 0:00:00]} c6 {[%emt 0:00:00]} 2. d4 {[%emt 0:00:01]} d5 {[%emt 0:00:00]} 3. Nc3 {[%emt 0:00:05]} dxe4 {[%emt 0:00:00]} 4. Nxe4 {[%emt 0:00:04]} Bf5 {[%emt 0:00:00]} 5. Ng3 {[%emt 0:00:02]} Bg6 {[%emt 0:00:00]} 6. h4 {[%emt 0:01:09]} h6 {[%emt 0:00:00]} 7. Nf3 {[%emt 0:00:10]} e6 {[%emt 0:00:00]} 8. Ne5 {[%emt 0:01:04]} Bh7 {[%emt 0:00:00]} 9. Bd3 {[%emt 0:00:30]} Bxd3 {[%emt 0:00:00]} 10. Qxd3 {[%emt 0:00:03]} Nf6 {[%emt 0:03:26]} 11. Bd2 {[%emt 0:00:48]} Nbd7 {[%emt 0:00:07]} 12. f4 {[%emt 0:00:29]} Be7 {[%emt 0:00:22]} 13. O-O-O {[%emt 0:00:39]} h5 {[%emt 0:03:37]} 14. Qf3 {[%emt 0:04:04]} g6 {[%emt 0:01:30]} 15. Kb1 {[%emt 0:10:27]} Qc7 {[%emt 0:04:00]} 16. c4 {[%emt 0:07:13]} Rh7 {[%emt 0:02:23]} 17. Bc3 {[%emt 0:05:14]} O-O-O {[%emt 0:00:17]} 18. Ne2 {[%emt 0:02:05]} Kb8 {[%emt 0:10:04]} 19. Rhf1 {[%emt 0:05:09]} Ng4 {[%emt 0:01:44]} 20. Nxg4 {[%emt 0:01:19]} hxg4 {[%emt 0:00:10]} 21. Qxg4 {[%emt 0:00:03]} Rxh4 {[%emt 0:00:26]} 22. Qf3 {[%emt 0:00:11]} Bf6 {[%emt 0:04:40]} 23. Be1 {[%emt 0:03:00]} Rhh8 {[%emt 0:03:47]} 24. f5 {[%emt 0:01:58]} Bh4 {[%emt 0:04:37]} 25. Bxh4 {[%emt 0:02:47]} Rxh4 {[%emt 0:01:57]} 26. fxe6 {[%emt 0:00:06]} fxe6 {[%emt 0:00:04]} 27. Qf7 {[%emt 0:06:35]} Rg4 {[%emt 0:03:28]} 28. g3 {[%emt 0:06:35]} Qd6 {[%emt 0:16:39]} 29. Qf3 {[%emt 0:15:55]} Rg5 {[%emt 0:00:20]} 30. Qe3 {[%emt 0:00:55]} Rf5 {[%emt 0:00:28]} 31. Nf4 {[%emt 0:02:11]} Rf6 {[%emt 0:01:40]} 32. Rfe1 {[%emt 0:01:25]} Nf8 {[%emt 0:00:19]} 33. Qe5 {[%emt 0:01:23]} Rf5 {[%emt 0:00:48]} 34. Qe4 {[%emt 0:04:00]} g5 {[%emt 0:07:26]} 35. Nxe6 {[%emt 0:00:52]} Qxe6 {[%emt 0:00:59]} 36. Qxe6 {[%emt 0:00:52]} Nxe6 {[%emt 0:00:02]} 37. Rxe6 {[%emt 0:00:05]} Rf3 {[%emt 0:00:12]} 38. d5 {[%emt 0:03:27]} cxd5 {[%emt 0:00:20]} 39. cxd5 {[%emt 0:00:51]} Rxg3 {[%emt 0:00:16]} 1/2-1/2

[Event "XLIV Sevilla Open 2019"]
[Site "Sevilla"]
[Date "2019.01.18"]
[Round "8"]
[White "Callejas Rojas, Francisco Miguel"]
[Black "Blanco Acevedo, Cristobal Jose"]
[Result "0-1"]
[ECO "E73"]
[WhiteElo "2164"]
[BlackElo "2397"]
[Annotator "NA"]
[PlyCount "58"]
[EventDate "2019.01.11"]
[EventType "swiss"]
[EventCountry "ESP"]
[SourceTitle "playchess.com"]
[Source "ChessBase"]
[SourceQuality "1"]
[TimeControl "5400+30"]

1. d4 {[%emt 0:00:00]} Nf6 {[%emt 0:17:25]} 2. c4 {[%emt 0:00:00]} g6 {[%emt 0:00:18]} 3. Nc3 {[%emt 0:00:08]} Bg7 {[%emt 0:00:06]} 4. e4 {[%emt 0:00:12]} d6 {[%emt 0:00:07]} 5. Be2 {[%emt 0:00:54]} O-O {[%emt 0:00:20]} 6. Bg5 {[%emt 0:02:40]} Nbd7 {[%emt 0:01:11]} 7. Qd2 {[%emt 0:01:07]} e5 {[%emt 0:00:09]} 8. d5 {[%emt 0:00:08]} a6 {[%emt 0:02:52]} 9. f3 {[%emt 0:01:12]} Qe8 {[%emt 0:01:19]} 10. g4 {[%emt 0:03:41]} Nc5 {[%emt 0:00:50]} 11. h4 {[%emt 0:05:31]} Bd7 {[%emt 0:00:17]} 12. h5 {[%emt 0:10:51]} b5 {[%emt 0:00:20]} 13. b4 {[%emt 0:00:19]} Nb7 {[%emt 0:00:10]} 14. cxb5 {[%emt 0:08:46]} axb5 {[%emt 0:00:11]} 15. Bd3 {[%emt 0:10:29]} c5 {[%emt 0:00:59]} 16. Qh2 {[%emt 0:08:33]} h6 {[%emt 0:03:33]} 17. Bxf6 {[%emt 0:06:16]} Bxf6 {[%emt 0:00:21]} 18. hxg6 {[%emt 0:00:01]} Bg7 {[%emt 0:01:14]} 19. gxf7+ {[%emt 0:03:41]} Rxf7 {[%emt 0:00:08]} 20. Rb1 {[%emt 0:07:13]} Ra3 {[%emt 0:05:20]} 21. Qb2 {[%emt 0:01:33]} Qa8 {[%emt 0:04:10]} 22. Be2 {[%emt 0:01:29]} Be8 {[%emt 0:03:31]} 23. Nh3 {[%emt 0:10:41]} Rc7 {[%emt 0:04:16]} 24. O-O {[%emt 0:03:34]} cxb4 {[%emt 0:01:06]} 25. Nxb5 {[%emt 0:00:04]} Bxb5 {[%emt 0:04:21]} 26. Bxb5 {[%emt 0:00:01]} Rxa2 {[%emt 0:00:42]} 27. Qxb4 {[%emt 0:07:50]} Qa7+ {[%emt 0:00:32]} 28. Rf2 {[%emt 0:00:20]} Bf6 {[%emt 0:01:49]} 29. Bc4 {[%emt 0:01:50]} Ra4 {[%emt 0:01:03]} 0-1

[Event "XLIV Sevilla Open 2019"]
[Site "Sevilla"]
[Date "2019.01.18"]
[Round "8"]
[White "Garrido Outon, Alex"]
[Black "Montero Melendez, Rafael"]
[Result "0-1"]
[ECO "C67"]
[WhiteElo "2097"]
[BlackElo "2353"]
[Annotator "NA"]
[PlyCount "44"]
[EventDate "2019.01.11"]
[EventType "swiss"]
[EventCountry "ESP"]
[SourceTitle "playchess.com"]
[Source "ChessBase"]
[SourceQuality "1"]
[TimeControl "5400+30"]

1. e4 {[%emt 0:00:00]} e5 {[%emt 0:00:00]} 2. Nf3 {[%emt 0:00:00]} Nc6 {[%emt 0:00:00]} 3. Bb5 {[%emt 0:00:05]} Nf6 {[%emt 0:00:00]} 4. O-O {[%emt 0:00:38]} Nxe4 {[%emt 0:00:00]} 5. d4 {[%emt 0:00:12]} Nd6 {[%emt 0:00:00]} 6. Bxc6 {[%emt 0:00:36]} dxc6 {[%emt 0:00:00]} 7. dxe5 {[%emt 0:00:12]} Nf5 {[%emt 0:00:05]} 8. Qxd8+ {[%emt 0:00:12]} Kxd8 {[%emt 0:00:04]} 9. Rd1+ {[%emt 0:00:30]} Ke8 {[%emt 0:00:05]} 10. h3 {[%emt 0:00:23]} Ne7 {[%emt 0:02:04]} 11. Nc3 {[%emt 0:02:38]} Ng6 {[%emt 0:00:14]} 12. Be3 {[%emt 0:03:39]} h6 {[%emt 0:09:23]} 13. Rd2 {[%emt 0:04:45]} Bb4 {[%emt 0:08:09]} 14. a3 {[%emt 0:05:24]} Bxc3 {[%emt 0:00:07]} 15. bxc3 {[%emt 0:00:03]} b6 {[%emt 0:22:13]} 16. Rad1 {[%emt 0:11:24]} c5 {[%emt 0:00:57]} 17. Nh2 {[%emt 0:08:13]} Be6 {[%emt 0:08:23]} 18. f4 {[%emt 0:03:13]} h5 {[%emt 0:13:57]} 19. g4 {[%emt 0:05:25]} hxg4 {[%emt 0:00:07]} 20. hxg4 {[%emt 0:00:16]} Rh3 {[%emt 0:00:23]} 21. Re1 {[%emt 0:03:26]} Nh4 {[%emt 0:01:54]} 22. Bf2 {[%emt 0:03:59]} Rxh2 {[%emt 0:01:07]} 0-1